Cogmind - Beta 15 @@@ ROGUE MODE // 2025.05.14 @ 20:28:05 Player: Epsilon 11 Result: Destroyed by S-27 Virus with Autogun Performance ------------- Evolutions (5) 2500 Regions Visited (22) 4400 Robots Destroyed (207) 1035 Value Destroyed (8912) 8912 Prototype IDs (63) 1260 Alien Tech Used (0) 0 Bonus (7293) 7293 TOTAL SCORE: 25400 Bonus ------- High Alert Combat Kills 1761 Follower Combat Kills 2408 Entered Garrisons 600 Used RIF Installer 2000 Aligned with FarCom 300 Met Data Miner 300 Friendly Fire -76 Cogmind --------- Core Integrity 0/1000 Matter 241/300 Energy 99/100 System Corruption 59% Temperature Cool (0) Movement Core (50) Location -5/Upper Caves Parts ------- > --- POWER (2) -------- (None) > --- PROPULSION (4) --- (None) > --- UTILITY (8) ------ Advanced System Shield Relay Coupler [Sentry] (37) > --- WEAPON (3) ------- (None) > --- INVENTORY (5) ---- Experimental Targeting Computer Graphene Brace Advanced Thermal Shield Advanced Datajack Peak State ------------ > --- POWER ------------ Neutrino Core Light Antimatter Reactor > --- PROPULSION ------- Improved Heavy Treads Advanced Heavy Treads > --- UTILITY ---------- Improved Coolant Injector High-capacity Storage Unit Advanced Recoil Stabilizer Medium Regenerative Plating Improved Focal Shield Advanced Hardlight Generator Relay Coupler [NC] Relay Coupler [Brawler] > --- WEAPON ----------- Dispersion Rifle HERF Cannon Advanced Datajack > --- INVENTORY -------- Micro Fission Core Improved Heavy Treads Experimental Targeting Computer Hardened Heavy Armor Plating Improved Powered Armor Graphene Brace Advanced Thermal Shield EM Shield Advanced System Shield Authchip [Propulsion] Authchip [Armor] Relay Coupler [Demolisher] HERF Cannon Improved Heavy Machine Gun Long-range Missile Launcher Improved Remote Datajack Phasing Sabre [Rating: 111] Favorites ----------- Power Light Antimatter Reactor Engine Light Angular Momentum Engine Power Core Fission Core Reactor Light Antimatter Reactor Propulsion Compact Wheel Treads Medium Treads Leg Flexi-carbon Leg Wheel Compact Wheel Utility High-capacity Storage Unit Device Advanced Heat Sink Storage High-capacity Storage Unit Processor Visual Processing Unit Hackware Relay Coupler [NC] Protection Medium Regenerative Plating Weapon Precision Assault Rifle Energy Gun Wave Gun Energy Cannon Advanced Plasma Cannon Ballistic Gun Precision Assault Rifle Ballistic Cannon Advanced Assault Cannon Launcher Heavy Rocket Launcher Special Weapon Remote Datajack Slashing Weapon Phasing Sabre Piercing Weapon Heavy Pick Special Melee Weapon Advanced Datajack Build | -11 -10 -10 -10 -9 -8 -8 -7 -7 -7 -7 -7 -7 -6 -6 -6 -6 -5 -5 -5 -5 -5 -5 ------- Run | Yrd Mat Min Exi Min Mat Gar Fac Was Fac Low Low Dat Pro Fac Gar Ext Fac Was Fac Gar Fac Upp Slots Evolved 10 | . . . . . 4 . 2 . . . . . . 2 . . 2 . . . . . Power 1 | . . . . . . . 1 . . . . . . . . . . . . . . . Propulsion 2 | . . . . . 1 . . . . . . . . . . . 1 . . . . . Utility 6 | . . . . . 2 . 1 . . . . . . 2 . . 1 . . . . . Weapon 1 | . . . . . 1 . . . . . . . . . . . . . . . . . Parts Attached 207 | 6 4 . 1 . 22 17 12 2 15 . 4 . 1 34 17 20 3 . 10 20 16 3 Power 32 | 1 . . . . 2 3 . . 3 . 2 . 1 8 1 1 1 . 1 4 4 . Engine 15 | 1 . . . . 2 2 . . 2 . 2 . . 1 1 1 1 . 1 . 1 . Core 14 | . . . . . . 1 . . 1 . . . 1 6 . . . . . 2 3 . Reactor 3 | . . . . . . . . . . . . . . 1 . . . . . 2 . . Propulsion 37 | 2 . . . . 7 1 4 . 3 . 1 . . 3 3 5 . . 2 1 5 . Treads 17 | . . . . . 3 1 . . . . . . . 1 . 4 . . 2 1 5 . Leg 3 | . . . . . . . . . . . . . . . 2 1 . . . . . . Wheel 17 | 2 . . . . 4 . 4 . 3 . 1 . . 2 1 . . . . . . . Hover . | . . . . . . . . . . . . . . . . . . . . . . . Flight . | . . . . . . . . . . . . . . . . . . . . . . . Utility 81 | 1 2 . 1 . 3 3 4 2 3 . 1 . . 19 8 10 1 . 4 11 5 3 Device 34 | . . . . . 1 1 1 . . . . . . 10 6 2 1 . 3 7 2 . Storage 12 | 1 1 . 1 . . 2 . . 1 . . . . 3 . 2 . . . 1 . . Processor 3 | . . . . . 1 . 1 . . . 1 . . . . . . . . . . . Hackware 18 | . . . . . . . 1 2 2 . . . . 1 1 3 . . . 3 2 3 Protection 14 | . 1 . . . 1 . 1 . . . . . . 5 1 3 . . 1 . 1 . Artifact . | . . . . . . . . . . . . . . . . . . . . . . . Weapon 57 | 2 2 . . . 10 10 4 . 6 . . . . 4 5 4 1 . 3 4 2 . Energy Gun 19 | 2 2 . . . 4 5 . . 1 . . . . . 4 . . . . 1 . . Energy Cannon 8 | . . . . . 1 2 . . . . . . . 1 . . . . 2 2 . . Ballistic Gun 8 | . . . . . 2 . . . 3 . . . . 1 . 2 . . . . . . Ballistic Cannon 9 | . . . . . 3 1 2 . . . . . . 1 . . 1 . . . 1 . Launcher 1 | . . . . . . . . . . . . . . . 1 . . . . . . . Special Weapon 6 | . . . . . . 1 2 . . . . . . 1 . . . . . 1 1 . Impact Weapon . | . . . . . . . . . . . . . . . . . . . . . . . Slashing Weapon 2 | . . . . . . . . . . . . . . . . 1 . . 1 . . . Piercing Weapon 1 | . . . . . . . . . 1 . . . . . . . . . . . . . Special Melee Weapon 3 | . . . . . . 1 . . 1 . . . . . . 1 . . . . . . Unidentified Prototypes 6 | . 1 . . . 1 . 1 . 1 . . . . . . 2 . . . . . . Parts Lost 76 | . . . . . 6 2 12 1 . . 2 . . 15 5 5 . . 2 3 12 11 Power 16 | . . . . . 1 1 2 . . . 1 . . 1 1 2 . . 1 2 4 . Propulsion 18 | . . . . . 3 . 6 . . . 1 . . 2 1 1 . . . . 2 2 Utility 28 | . . . . . 1 . 3 . . . . . . 8 2 2 . . 1 1 3 7 Weapon 14 | . . . . . 1 1 1 1 . . . . . 4 1 . . . . . 3 2 Highest Loss Streak 8 | . . . . . 6 1 8 1 . . 2 . . 8 1 2 . . 1 1 3 8 To Critical Strikes 1 | . . . . . . . . . . . . . . . . . . . . . . 1 Average Backups 14 | . 4 10 10 11 13 12 13 7 5 8 8 8 8 14 18 19 19 19 17 18 17 8 Power 1 | . 1 2 2 3 2 . . . . 1 . . . 1 2 2 2 3 2 . . . Propulsion 1 | . . 2 2 2 2 . . . . 1 1 1 1 3 2 . . . . . 1 . Utility 7 | . 1 2 1 2 2 3 5 3 2 2 2 3 3 6 10 10 10 10 10 11 11 6 Weapon 3 | . 1 4 4 4 4 6 6 3 1 2 3 3 3 3 3 4 4 4 3 3 2 . Tool/Special . | . . . . . . . . . . . . . . . . . . . . . . . Unused Backups 37 | . . . 2 . 6 2 1 2 1 1 1 . . 6 3 4 . . . 2 2 4 Power 8 | . . . . . 2 1 . . . . . . . 1 . 3 . . . . 1 . Propulsion 2 | . . . . . . . . . . 1 . . . 1 . . . . . . . . Utility 15 | . . . 2 . . 1 . 1 . . . . . 3 2 . . . . 2 1 3 Weapon 12 | . . . . . 4 . 1 1 1 . 1 . . 1 1 1 . . . . . 1 Tool/Special . | . . . . . . . . . . . . . . . . . . . . . . . Average Slot Usage (%) 90 | . 86 100 100 100 95 92 91 27 61 100 94 92 92 90 96 98 84 88 92 87 86 32 Engine 5 | . 14 14 14 14 8 7 2 . 6 7 7 15 10 2 5 7 5 5 9 2 2 . Core 3 | . . . . . . 1 6 . 2 7 4 . 4 10 . . . . . 2 7 . Reactor 1 | . . . . . . . . . . . . . . . 6 3 . . . 4 . . Treads 7 | . . . . . 2 27 9 . . . . . . . . 8 17 17 16 11 14 9 Leg 2 | . . . . . . . . . . . . . . . 10 11 . . . . . . Wheel 7 | . 28 28 28 28 23 . 11 . 11 23 19 15 15 11 6 . . . . . . . Device 12 | . . . . . 6 9 . . 1 . . . . 13 24 23 13 17 14 19 15 4 Storage 6 | . 14 14 14 14 9 11 7 2 2 7 7 7 7 6 6 6 5 5 5 5 5 2 Processor 3 | . . . . . 8 9 14 7 7 7 7 7 7 . . . . . . . . . Hackware 10 | . . . . . . . 6 10 16 23 23 23 23 15 4 8 17 17 17 13 16 14 Protection 5 | . 1 14 14 14 8 . 6 . . . . . . 9 7 5 5 5 7 5 4 . Energy Gun 6 | . 28 28 28 28 19 11 3 . 2 . . . . 3 12 8 . . . 2 2 . Energy Cannon 2 | . . . . . . 1 . . . . . . . . . . . . 5 10 4 . Ballistic Gun 4 | . . . . . 5 . . . 5 15 17 20 23 13 . 6 10 . . . . . Ballistic Cannon 3 | . . . . . 2 13 15 . . . . . . . . . . 5 5 2 2 . Special Weapon 1 | . . . . . . . 2 5 . . . . . . 1 1 5 5 3 . 3 . Peak Build Rating 111 | 6 12 12 13 14 31 45 52 18 37 37 49 49 52 72 80 85 82 78 101 111 109 65 Average Rating 63 | 4 8 12 12 13 26 36 40 13 23 37 40 48 50 64 75 80 74 77 90 105 94 27 On Entrance 43 | . 6 12 12 13 14 31 45 9 7 37 37 49 49 52 58 79 73 77 78 96 109 55 Naked Turns 43 | . . . . . . . . . . . . . . . . . . . . . . 43 Heaviest Build 127 | 12 24 24 34 34 56 54 60 3 25 24 29 29 32 109 101 86 83 83 111 127 108 51 Greatest Support 150 | 26 26 26 26 26 68 75 75 3 48 48 48 44 44 44 44 86 86 86 140 145 150 108 Greatest Overweight (x) 13 | . . . 1 1 1 . 13 . . . . . . 3 6 5 . . 1 . 1 . Average Overweight (x) . | . . . . 1 . . . . . . . . . 1 4 . . . . . . . Largest Inventory Capacity 30 | 8 10 10 15 15 15 15 15 15 8 8 8 8 8 20 20 20 20 20 20 30 20 20 Average Capacity 16 | 7 9 10 11 15 15 15 15 7 6 8 8 8 8 17 20 20 20 20 20 20 20 11 Most Carried 20 | 1 10 10 11 13 15 15 15 14 8 8 8 8 8 20 20 20 20 20 20 20 20 16 Average Carried 15 | . 4 10 10 12 14 13 14 6 5 7 7 8 8 14 18 19 19 19 18 19 19 9 Final Capacity 20 | 8 10 10 15 15 15 15 15 5 8 8 8 8 8 20 20 20 20 20 20 20 20 5 Final Carried 20 | 1 10 10 11 13 15 15 15 5 8 8 8 8 8 19 20 20 19 20 20 20 17 4 Class Distribution -------------------- 16% | Bothacker-Tank 15% | Skirmisher 11% | Bothacker-Skirmisher 10% | Scavenger-Tank 10% | Scavenger-Mutant 10% | Mutant 9% | Bothacker-Mutant 4% | Tank Dominant Class ---------------- Mutant | -10/Materials Mutant | -10/Mines Mutant | -10/Exiles Mutant | -9/Mines Skirmisher | -8/Materials Skirmisher | -8/Garrison Bothacker-Skirmisher | -7/Factory Mutant | -7/Waste Mutant | -7/Factory Scavenger-Mutant | -7/Lower Caves Scavenger-Mutant | -7/Lower Caves Scavenger-Gunner | -7/Data Miner Scavenger-Gunner | -6/Proximity Caves Tank | -6/Factory Scavenger-Mutant | -6/Garrison Scavenger-Tank | -6/Extension Bothacker-Skirmisher | -5/Factory Bothacker-Mutant | -5/Waste Bothacker-Tank | -5/Factory Bothacker-Tank | -5/Garrison Bothacker-Tank | -5/Factory Mutant | -5/Upper Caves Resources | -11 -10 -10 -10 -9 -8 -8 -7 -7 -7 -7 -7 -7 -6 -6 -6 -6 -5 -5 -5 -5 -5 -5 ----------- Run | Yrd Mat Min Exi Min Mat Gar Fac Was Fac Low Low Dat Pro Fac Gar Ext Fac Was Fac Gar Fac Upp Matter Collected 8370 | 218 63 19 . 10 521 890 478 . 551 41 155 . 98 1705 826 726 . . 314 1053 666 36 Remotely . | . . . . . . . . . . . . . . . . . . . . . . . Salvage Created 9743 | . 85 . . 10 1216 867 548 . 484 . 449 . 72 2088 443 447 . . 394 1927 713 . Parts 408 | . 11 . . 2 67 45 26 . 19 . 6 . 8 98 12 14 . . 15 59 26 . Haulers Intercepted 2 | . . . . . 1 . . . . . . . . 1 . . . . . . . . Recyclers Shooed 7 | . . . . 1 . . . . . . . . . 2 . 4 . . . . . . Parts Field Recycled . | . . . . . . . . . . . . . . . . . . . . . . . Retrieved Matter . | . . . . . . . . . . . . . . . . . . . . . . . Parts Self-Destructed 17 | . . . . . . . . . . . 3 . 13 . . . . . . . . 1 Prevented 4 | . . . . . . . . . . . . . 3 . . . . . . . . 1 Kills | -11 -10 -10 -10 -9 -8 -8 -7 -7 -7 -7 -7 -7 -6 -6 -6 -6 -5 -5 -5 -5 -5 -5 ------- Run | Yrd Mat Min Exi Min Mat Gar Fac Was Fac Low Low Dat Pro Fac Gar Ext Fac Was Fac Gar Fac Upp Combat Hostiles Destroyed 179 | . 6 . . . 27 23 10 . 2 . 2 . 3 29 23 11 . . 6 25 12 . Melee 3 | . . . . . . . . . . . . . . . 2 . . . . . 1 . Guns 95 | . 6 . . . 26 11 2 . 2 . 2 . 3 24 5 8 . . . 6 . . Cannons 50 | . . . . . 1 10 8 . . . . . . 3 . . . . 5 14 9 . AOE 22 | . . . . . . 2 . . . . . . . 1 14 3 . . . 1 1 . Classes Destroyed 20 | . 1 . . 1 9 1 1 . . . . . 1 3 1 2 . . . . . . Worker 15 | . . . . . 4 . 1 . 1 . . . . 7 . . . . 2 . . . Builder 5 | . . . . . 1 . 2 . 1 . . . . . . 1 . . . . . . Tunneler 3 | . . . . 1 . . . . . . . . . 1 . . . . . . 1 . Hauler 2 | . . . . . 1 . . . . . . . . 1 . . . . . . . . Recycler 10 | . . . . . 1 . 3 . 4 . . . . 1 . . . . . . 1 . Mechanic 1 | . . . . . 1 . . . . . . . . . . . . . . . . . Operator 1 | . . . . . . . . . . . . . . . . 1 . . . . . . Drone 2 | . . . . . . . . . . . . . 2 . . . . . . . . . Watcher 8 | . . . . . 1 1 3 . . . . . . 1 . 1 . . 1 . . . Swarmer 33 | . 6 . . . 12 6 5 . . . 1 . . . . . . . . 1 2 . Saboteur 1 | . . . . . . . . . . . . . . . . 1 . . . . . . Grunt 56 | . . . . . 7 8 1 . . . 1 . . 14 4 5 . . 2 11 3 . Brawler 6 | . . . . . . . . . . . . . . 2 1 1 . . . . 2 . Duelist 7 | . . . . . 2 1 . . . . . . . 1 . 2 . . . . 1 . Sentry 27 | . . . . . 6 5 2 . 1 . . . . 3 1 2 . . 2 5 . . Specialist 2 | . . . . . . . . . . . . . . 2 . . . . . . . . Hunter 8 | . . . . . . . 1 . 1 . . . . 2 . . . . . 4 . . Programmer 19 | . . . . . . 3 1 . . . . . 1 4 . . . . 2 4 4 . Heavy 1 | . . . . . . . . . . . . . . 1 . . . . . . . . Assembled 17 | . . . . . . . . . . . . . . . 17 . . . . . . . Best Kill Streak 17 | . 3 . . 1 10 3 9 . 3 . 1 . 2 6 17 6 . . 2 4 4 . Combat Bots Only 17 | . 3 . . . 6 3 4 . 1 . 1 . 2 6 17 5 . . 2 4 4 . Max Kills in Single Turn 6 | . 2 . . 1 2 2 2 . 1 . 1 . 1 2 6 2 . . 2 1 1 . Gunslinging 1 | . . . . . 1 . . . . . . . . . . . . . . . . . Exploded 6 | . . . . . . 1 . . . . . . . 1 6 2 . . . 1 1 . Melee 1 | . . . . . . . . . . . . . . . 1 . . . . . 1 . Uniques/NPCs Destroyed . | . . . . . . . . . . . . . . . . . . . . . . . Combat | -11 -10 -10 -10 -9 -8 -8 -7 -7 -7 -7 -7 -7 -6 -6 -6 -6 -5 -5 -5 -5 -5 -5 -------- Run | Yrd Mat Min Exi Min Mat Gar Fac Was Fac Low Low Dat Pro Fac Gar Ext Fac Was Fac Gar Fac Upp Hostile Shots Fired 1753 | . 38 2 . . 124 90 160 1 29 6 21 . 15 412 85 186 . . 42 212 234 96 Missed 471 | . 10 2 . . 32 22 54 . 15 2 8 . 8 97 24 60 . . 11 27 71 28 Hits 1282 | . 28 . . . 92 68 106 1 14 4 13 . 7 315 61 126 . . 31 185 163 68 Melee 36 | . . . . . . . 2 1 . . . . . 15 . . . . . . 3 15 Projectile 1246 | . 28 . . . 92 68 104 . 14 4 13 . 7 300 61 126 . . 31 185 160 53 AOE 1 | . . . . . . . . . . . . . . . . . . . 1 . . . Critical Strikes 62 | . 1 . . . 4 6 3 1 . . . . . 17 2 1 . . 1 9 11 6 Actively Blocked 14 | . . . . . . . . . . . . . . 8 2 1 . . . 2 1 . Part Disruptions 5 | . . . . . . 1 . . . . . . . . . . . . 1 . 1 2 Damage Taken 19218 | . 226 . . . 1093 920 1520 50 97 . 159 . 94 3991 858 1742 . . 555 2865 3744 1304 Core 2544 | . 56 . . . 161 43 486 50 . . 17 . 22 350 142 206 . . 10 191 275 535 Absorbed by Shields 1938 | . . . . . . . . . . . . . . 1318 . 184 . . 244 160 32 . Reduced by Siege Mode 189 | . . . . . . . . . . . . . . . . . . . . 163 26 . Ignored by Resistances 1679 | . . . . . . . . . . . . . . 60 210 481 . . 20 493 415 . Regen/Repaired (Parts) 2201 | . . . . . . . 155 . . . . . . 468 . 75 152 60 574 518 199 . Core Remaining (%) 54 | 100 . . . 77 . 62 . . . . . . 17 . . 17 . . . . . . Volleys Fired 762 | . 12 . . 3 71 78 70 1 8 . 7 . 4 123 69 56 1 5 35 155 58 6 Largest 3 | . 2 . . 2 3 3 3 1 3 . 3 . 3 3 3 3 1 1 3 3 3 1 Hottest 264 | . 112 . . 112 167 191 178 5 84 . 84 . 84 128 243 177 5 5 243 264 264 47 Shots Fired 1539 | . 24 . . 6 181 167 117 1 18 2 20 . 12 347 112 112 1 5 66 264 78 6 Gun 880 | . 24 . . 6 159 92 24 . 18 2 20 . 12 307 69 88 . . . 57 2 . Cannon 546 | . . . . . 22 75 84 . . . . . . 36 6 . . . 60 205 52 6 Launcher 10 | . . . . . . . . . . . . . . . 6 4 . . . . . . Special 103 | . . . . . . . 9 1 . . . . . 4 31 20 1 5 6 2 24 . Kinetic 676 | . . . . . 56 70 84 . 14 2 20 . 12 263 6 49 . . 23 43 28 6 Thermal 616 | . 24 . . 6 112 25 24 . 4 . . . . 80 69 39 . . 37 194 2 . Explosive 10 | . . . . . . . . . . . . . . . 6 4 . . . . . . Electromagnetic 134 | . . . . . 13 72 . . . . . . . . . . . . . 25 24 . Robot Hit Streak 30 | . 3 . . 4 17 10 10 1 6 . 9 . 6 30 22 10 5 4 11 15 7 3 Robot Miss Streak 7 | . 7 . . 1 5 3 3 . 1 . 1 . 1 3 4 3 . 1 2 5 5 2 Penetration Max 1 | . . . . . . . . . . . . . . 1 . . . . . . . . Secondary Targets 13 | . 1 . . . 4 1 . . . . . . . 4 1 2 . . . . . . Max Gunslinging Chain 1 | . 1 . . . 1 1 . . . . . . . 1 1 1 . . . . . . Shots Hit Robots 970 | . 9 . . 4 97 87 62 1 18 . 17 1 7 247 77 89 1 4 37 151 56 5 Core Hits 397 | . 6 . . 2 52 31 23 . 12 . 8 . 4 93 38 42 . . 13 59 13 1 Critical Kills 6 | . . . . . . . . . . . . . . 1 . . . . 1 4 . . Critical Parts Destroyed 8 | . . . . . . . . . . . . . . 2 . 1 . . . 5 . . Critical Strikes 51 | . 2 . . 1 11 8 2 . . . 1 . . 7 3 2 . . 2 10 1 1 Burn 22 | . 2 . . 1 10 1 1 . . . . . . 4 2 1 . . . . . . Meltdown 4 | . . . . . . . . . . . . . . . . . . . 1 3 . . Destroy 10 | . . . . . . . . . . . . . . 3 . 1 . . . 6 . . Blast 10 | . . . . . . 6 1 . . . . . . . . . . . 1 1 . 1 Corrupt 2 | . . . . . 1 1 . . . . . . . . . . . . . . . . Sever 1 | . . . . . . . . . . . . . . . . . . . . . 1 . Impale 2 | . . . . . . . . . . . 1 . . . 1 . . . . . . . Melee Attacks 153 | . . . . . . 16 . . 16 . 6 1 1 15 62 19 1 . . . 15 1 Impact . | . . . . . . . . . . . . . . . . . . . . . . . Slashing 18 | . . . . . . . . . . . . . . . . 1 1 . . . 15 1 Piercing 96 | . . . . . . . . . 15 . 6 . . 13 62 . . . . . . . Sneak Attacks 46 | . . . . . . 16 . . 6 . . 1 1 3 . 18 . . . . 1 . Combat Hostiles . | . . . . . . . . . . . . . . . . . . . . . . . Follow-up Attacks . | . . . . . . . . . . . . . . . . . . . . . . . Damage Inflicted 24777 | . 143 . . 84 1845 1888 1484 . 557 . 617 . 131 5148 1937 2624 8 . 1482 4915 1737 177 Guns 11243 | . 143 . . 84 1579 831 321 . 210 . 268 . 131 4418 819 1455 . . . 984 . . Cannons 9598 | . . . . . 263 966 1157 . . . . . . 610 103 . . . 1269 3882 1226 122 Explosions 2349 | . . . . . . 91 . . . . . . . 31 790 1160 . . 139 49 89 . Melee 1441 | . . . . . . . . . 347 . 349 . . 75 225 . . . . . 409 36 Ramming 146 | . . . . . 3 . 6 . . . . . . 14 . 9 8 . 74 . 13 19 Kinetic 10159 | . . . . . 593 869 1157 . 172 . 268 . 131 3915 76 777 . . 569 735 775 122 Thermal 9303 | . 143 . . 84 1069 444 321 . 38 . . . . 1144 846 678 . . 839 3608 89 . Explosive 1950 | . . . . . . . . . . . . . . . 790 1160 . . . . . . Electromagnetic 1778 | . . . . . 180 575 . . . . . . . . . . . . . 572 451 . Impact . | . . . . . . . . . . . . . . . . . . . . . . . Slashing 445 | . . . . . . . . . . . . . . . . . . . . . 409 36 Piercing 996 | . . . . . . . . . 347 . 349 . . 75 225 . . . . . . . Highest Corruption 59 | . . . . . 4 6 3 9 9 9 9 1 1 16 16 16 . 11 11 9 29 59 Average Corruption 10 | . . . . . 4 4 2 6 9 9 2 1 1 8 16 13 . 6 6 7 17 48 Corruption Purged 14 | . . . . . . . . . . . . . . 1 . 3 . . 10 . . . Corruption Blocked . | . . . . . . . . . . . . . . . . . . . . . . . Effects 507 | . . . . . 10 37 . 1 28 9 7 1 3 47 81 87 . 4 33 66 71 22 Message Errors 117 | . . . . . 1 8 . 1 11 3 . . 1 7 21 27 . 1 8 9 15 4 Matter Fused 107 | . . . . . 3 9 . . 5 1 3 . . 8 19 19 . 2 7 16 12 3 Heat Flow Errors 69 | . . . . . 2 6 . . 5 1 1 . 1 5 7 12 . . 5 10 11 3 Energy Discharges 59 | . . . . . 1 8 . . 3 1 . . . 5 10 11 . . 4 7 8 1 Parts Rejected 4 | . . . . . . . . . . . . . . 1 . . . . . . 2 1 Parts Fused 5 | . . . . . . . . . 1 . . . . . . 2 . . 1 1 . . Data Loss (minor) 51 | . . . . . 2 4 . . 2 1 2 1 1 4 7 8 . . 4 7 6 2 Data Loss (major) 22 | . . . . . . 1 . . 1 . . . . 5 5 1 . 1 2 2 4 . Misfires 20 | . . . . . . . . . . 2 . . . 5 4 2 . . 1 3 3 . Alerts 18 | . . . . . . . . . . . 1 . . 2 4 3 . . 1 3 4 . Misdirections 15 | . . . . . . . . . . . . . . 2 2 1 . . . . 2 8 Weapon Failures 20 | . . . . . 1 1 . . . . . . . 3 2 1 . . . 8 4 . Overload Shots 1 | . . . . . . . . . 1 . . . . . . . . . . . . . Overflow Damage 542 | . . . . . 6 42 29 . 8 . 177 . . . 55 . . . 60 74 91 . Projectiles 202 | . . . . . 6 33 29 . . . . . . . . . . . 32 74 28 . Explosions 88 | . . . . . . 9 . . . . . . . . 55 . . . 24 . . . Melee 252 | . . . . . . . . . 8 . 177 . . . . . . . 4 . 63 . Knockbacks 46 | . . . . . 7 2 11 . . . . . . 2 . 1 1 . 6 7 7 2 Impact 3 | . . . . . 1 . . . . . . . . . . 1 1 . . . . . Kinetic 41 | . . . . . 6 2 11 . . . . . . 2 . . . . 5 7 6 2 Secondary 2 | . . . . . . . . . . . . . . . . . . . 1 . 1 . Self-Inflicted Damage 201 | . . . . . . . . . . . . . . 150 51 . . . . . . . Shots 4 | . . . . . . . . . . . . . . 2 2 . . . . . . . Rammed 15 | . . . . . . . 1 . . . . . . 1 . 2 1 . 3 . 1 6 Targets Rammed 18 | . . . . . 1 . 2 . . . . . . 1 . 2 1 . 3 . 2 6 Kicked . | . . . . . . . . . . . . . . . . . . . . . . . Crushed 3 | . . . . . 1 . 1 . . . . . . . . . . . . . 1 . Highest Temperature 505 | . 255 . . 120 452 237 487 . 255 168 122 . 250 442 505 280 . . 453 415 252 131 Average Temperature 116 | . 97 . . 52 129 57 166 . 75 91 34 . 70 120 177 75 . . 185 100 87 64 Received Heat Transfer 3524 | . . . . . 378 306 135 . 6 . 48 . 18 909 447 336 . . 60 452 285 144 Effects 56 | . . . . . 8 . 11 . . . . . . 11 17 . . . 2 4 3 . Shutdowns 13 | . . . . . 1 . 3 . . . . . . 3 4 . . . 1 1 . . Energy Bleed 13 | . . . . . 3 . 2 . . . . . . 4 3 . . . . . 1 . Interference 18 | . . . . . 3 . 1 . . . . . . 3 6 . . . . 3 2 . Matter Decay 4 | . . . . . . . 2 . . . . . . 1 1 . . . . . . . Short Circuit 4 | . . . . . 1 . . . . . . . . . 3 . . . . . . . Damage (minor) 3 | . . . . . . . 2 . . . . . . . . . . . 1 . . . Damage (major) 1 | . . . . . . . 1 . . . . . . . . . . . . . . . Siege Activations 9 | . . . . . . . . . . . . . . . . . . . . 7 2 . Total Turns 174 | . . . . . . . . . . . . . . . . . . . . 152 22 . Longest Duration 66 | . . . . . . . . . . . . . . . . . . . . 66 17 . Martial Activations . | . . . . . . . . . . . . . . . . . . . . . . . Shielding Activations . | . . . . . . . . . . . . . . . . . . . . . . . Robots Disrupted 1 | . . . . . 1 . . . . . . . . . . . . . . . . . Combat Hostiles 1 | . . . . . 1 . . . . . . . . . . . . . . . . . Robots Corrupted 3 | . . . . . . . . . . . . . . . . . . . 1 1 1 . Combat Hostiles 2 | . . . . . . . . . . . . . . . . . . . . 1 1 . Parts Fried 6 | . . . . . . 4 . . . . . . . . . . . . 1 1 . . Impact Corruptions 1 | . . . . . . . . . . . . . . . . . . . 1 . . . Robots Melted 8 | . . . . . . . . . . . . . . 1 2 . . . 1 4 . . Combat Hostiles 7 | . . . . . . . . . . . . . . 1 2 . . . 1 3 . . Parts Melted 36 | . 2 . . . 11 2 3 . . . . . . 3 1 4 . . 2 8 . . Heat Transferred 16070 | . 471 . . 259 3071 840 703 . 50 . . . . 2425 1532 1110 . . 1050 4509 50 . Parts Sabotaged . | . . . . . . . . . . . . . . . . . . . . . . . Parts Stolen . | . . . . . . . . . . . . . . . . . . . . . . . Parts Stripped . | . . . . . . . . . . . . . . . . . . . . . . . Power Chain Reactions 5 | . . . . . . 3 . . . . . . . . . . . . . 1 1 . Alert | -11 -10 -10 -10 -9 -8 -8 -7 -7 -7 -7 -7 -7 -6 -6 -6 -6 -5 -5 -5 -5 -5 -5 ------- Run | Yrd Mat Min Exi Min Mat Gar Fac Was Fac Low Low Dat Pro Fac Gar Ext Fac Was Fac Gar Fac Upp Maximum Alert Level 5 | . . . . . 2 4 2 . . . . . . 3 5 4 2 . . 4 2 . Low Security (%) 28 | 100 100 100 . 100 57 . . 100 100 . . . . 54 . . . 100 100 10 . . Level 1 13 | . . . . . 35 22 2 . . . . . . 21 . . . . . 17 45 . Level 2 22 | . . . . . 6 12 97 . . . . . . 20 10 . 100 . . 24 54 . Level 3 23 | . . . . . . 36 . . . . . . . 4 48 77 . . . 39 . . Level 4 9 | . . . . . . 28 . . . . . . . . 23 22 . . . 9 . . Level 5 1 | . . . . . . . . . . . . . . . 17 . . . . . . . High Security . | . . . . . . . . . . . . . . . . . . . . . . . Max Security . | . . . . . . . . . . . . . . . . . . . . . . . Peak Influence 2239 | . 130 107 . 5 413 1263 662 123 65 . . . . 789 2239 1392 681 186 175 1253 657 . Initial 1175 | . . 46 . . . 252 662 123 65 . . . . 150 536 1175 681 186 88 86 657 . Average 553 | . 45 55 . . 155 801 505 114 9 . . . . 287 1134 1051 609 156 66 650 413 . Influence Increases 10320 | . 179 81 . 5 804 1111 350 . 119 . 95 . 102 1609 1793 1797 2 . 467 1217 589 . Destroy 0b10 Robot/C 4580 | . 120 60 . . 540 560 160 . 40 . 40 . 40 700 380 960 . . 120 620 240 . Destroy 0b10 Robot/NC 311 | . . . . 5 45 5 36 . 30 . 10 . 10 65 . 60 . . 15 20 10 . Destroy Leader 636 | . 20 10 . . 134 30 46 . 20 . . . 10 208 . 86 . . 32 10 30 . Allied During Kill 851 | . . 11 . . . 38 . . . . . . 12 66 188 512 . . . 24 . . Trap Triggered on 0b10 20 | . . . . . . 20 . . . . . . . . . . . . . . . . Successful Hack 360 | . 9 . . . 43 14 32 . 20 . . . . 61 . 29 . . 82 30 40 . Disable Machine 354 | . . . . . 15 90 24 . . . . . . 45 15 . . . 90 45 30 . Anti-Garrison Action 1550 | . . . . . . 100 . . . . . . . 150 1050 . . . . 250 . . Destroy Structure 602 | . . . . . 12 89 16 . 9 . . . . 44 85 45 2 . 128 158 14 . Advance Influence 150 | . . . . . . . . . . . . . . 150 . . . . . . . . Lose Combat Pursuer 906 | . 30 . . . 15 165 36 . . . 45 . 30 120 75 105 . . . 60 225 . Influence Decreases 10290 | . 59 154 47 5 416 236 1261 259 207 5 95 . 102 842 321 2646 859 407 470 87 1428 384 Entered New Map 4294 | . . 74 47 . . 136 601 229 28 3 . . . . 231 1064 709 347 38 37 596 154 Time Decay 3981 | . 59 40 . 5 356 . 530 20 179 2 90 . 102 672 . 642 150 60 412 . 542 120 Lost Part 745 | . . . . . 60 20 120 10 . . 5 . . 150 50 50 . . 20 30 120 110 Lost Ally 670 | . . 40 . . . 80 10 . . . . . . 20 40 440 . . . 20 20 . Purge Threat 600 | . . . . . . . . . . . . . . . . 450 . . . . 150 . Squads Dispatched 57 | . . . . . 6 . 5 . 5 . . . . 17 . 9 1 . 3 . 11 . Investigation 6 | . . . . . . . 1 . 1 . . . . 2 . 1 . . . . 1 . Extermination 16 | . . . . . . . 3 . 1 . . . . 6 . . 1 . 2 . 3 . Reinforcement 16 | . . . . . . . 1 . 2 . . . . 5 . 2 . . 1 . 5 . Assault 13 | . . . . . . . . . 1 . . . . 4 . 6 . . . . 2 . Garrison 6 | . . . . . 6 . . . . . . . . . . . . . . . . . Intercept . | . . . . . . . . . . . . . . . . . . . . . . . Searches Triggered . | . . . . . . . . . . . . . . . . . . . . . . . Data Miner Redirects 11 | . . . . . . . . . . . . . . 4 . 4 . . . . 3 . Construction Impeded 3 | . . . . . . . 1 . . . . . . . . 1 . . . . 1 . Haulers Reinforced 1 | . . . . . . . . . . . . . . 1 . . . . . . . . Active Scanning Responses . | . . . . . . . . . . . . . . . . . . . . . . . Cargo Convoy Interrupts 1 | . . . . . . . . . . . . . . . . . . . . . 1 . Alert ID Control Effect 1 | . . . . . . . . . . . . . . . . . . . . . . 1 Stealth | -11 -10 -10 -10 -9 -8 -8 -7 -7 -7 -7 -7 -7 -6 -6 -6 -6 -5 -5 -5 -5 -5 -5 --------- Run | Yrd Mat Min Exi Min Mat Gar Fac Was Fac Low Low Dat Pro Fac Gar Ext Fac Was Fac Gar Fac Upp Distress Signals 18 | . 3 . . . 4 . 4 . 2 . . . 1 1 . 2 . . 1 . . . Communications Jammed 54 | . . . . . . . . . . . . . . 54 . . . . . . . . Distress Signals 54 | . . . . . . . . . . . . . . 54 . . . . . . . . Times Spotted 411 | . 11 3 . . 37 38 27 5 14 1 5 . 8 69 36 57 1 2 12 36 39 10 Peak Tracking Total 13 | . 6 3 . . 5 8 6 5 3 1 3 . 4 6 13 10 1 1 4 6 9 7 Tactical Retreats 35 | . 1 . . . 1 4 2 . . . 3 . 1 4 3 5 . . . 2 8 1 Traps | -11 -10 -10 -10 -9 -8 -8 -7 -7 -7 -7 -7 -7 -6 -6 -6 -6 -5 -5 -5 -5 -5 -5 ------- Run | Yrd Mat Min Exi Min Mat Gar Fac Was Fac Low Low Dat Pro Fac Gar Ext Fac Was Fac Gar Fac Upp Traps Triggered 15 | . . . . . 1 . 1 . . . . . . 1 4 1 1 . 1 3 2 . Indirectly . | . . . . . . . . . . . . . . . . . . . . . . . Trap Hack Attempts 2 | . . . . . . . . . . . . . . . . . . . . 2 . . Triggered . | . . . . . . . . . . . . . . . . . . . . . . . Disarmed 1 | . . . . . . . . . . . . . . . . . . . . 1 . . Reprogrammed . | . . . . . . . . . . . . . . . . . . . . . . . Reused 2 | . . . . . . 2 . . . . . . . . . . . . . . . . Traps Extracted . | . . . . . . . . . . . . . . . . . . . . . . . Installed 2 | . . . . . . 2 . . . . . . . . . . . . . . . . Triggered 2 | . . . . . . 2 . . . . . . . . . . . . . . . . Most Traps Carried 2 | . . . . . . 2 . . . . . . . . . . . . . . . . Machines | -11 -10 -10 -10 -9 -8 -8 -7 -7 -7 -7 -7 -7 -6 -6 -6 -6 -5 -5 -5 -5 -5 -5 ---------- Run | Yrd Mat Min Exi Min Mat Gar Fac Was Fac Low Low Dat Pro Fac Gar Ext Fac Was Fac Gar Fac Upp Machines Disabled 34 | . . . . . 1 6 2 . . . . . . 4 5 4 . . 6 4 2 . Max in Single Turn 4 | . . . . . 1 1 1 . . . . . . 3 1 1 . . 4 1 1 . Garrison Access 3 | . . . . . . . . . 1 . . . . 1 . . . . . . 1 . Garrison Relay 5 | . . . . . . . . . . . . . . . 3 . . . . 2 . . Machines Repaired . | . . . . . . . . . . . . . . . . . . . . . . . Machines Dismantled 1 | . . . . . . 1 . . . . . . . . . . . . . . . . Machines Sabotaged . | . . . . . . . . . . . . . . . . . . . . . . . Overloaded Fab Kills . | . . . . . . . . . . . . . . . . . . . . . . . Hacking | -11 -10 -10 -10 -9 -8 -8 -7 -7 -7 -7 -7 -7 -6 -6 -6 -6 -5 -5 -5 -5 -5 -5 --------- Run | Yrd Mat Min Exi Min Mat Gar Fac Was Fac Low Low Dat Pro Fac Gar Ext Fac Was Fac Gar Fac Upp Machines Accessed 87 | . 3 . 2 . 8 3 13 . 12 . . 4 . 14 1 10 1 . 8 2 6 . Terminals 47 | . 2 . . . 6 3 5 . 4 . . . . 7 1 9 1 . 4 2 3 . Fabricators 7 | . . . . . . . 2 . 4 . . . . . . . . . . . 1 . Repair Stations 10 | . . . . . 1 . 2 . . . . . . 3 . . . . 2 . 2 . Recycling Units 9 | . 1 . . . . . 2 . 3 . . . . 1 . 1 . . 1 . . . Scanalyzers 2 | . . . . . . . 1 . . . . . . 1 . . . . . . . . Garrison Access 6 | . . . . . 1 . 1 . 1 . . . . 2 . . . . 1 . . . Total Hacks 221 | . 7 . 2 . 22 6 31 . 25 . . 26 . 35 1 27 4 . 15 3 17 . Successful 123 | . 4 . 2 . 11 1 16 . 12 . . 26 . 21 . 14 . . 10 2 4 . Failed 98 | . 3 . . . 11 5 15 . 13 . . . . 14 1 13 4 . 5 1 13 . Catastrophic 23 | . . . . . 3 . 3 . 5 . . . . 3 1 4 . . 1 . 3 . Database Lockouts . | . . . . . . . . . . . . . . . . . . . . . . . Manual 84 | . 5 . 1 . 17 . 12 . 9 . . . . 10 . 19 1 . 6 . 4 . Terminals 116 | . 5 . . . 19 6 15 . 7 . . . . 16 1 26 4 . 7 3 7 . Fabricators 16 | . . . . . . . 4 . 8 . . . . . . . . . . . 4 . Repair Stations 27 | . . . . . 1 . 3 . . . . . . 12 . . . . 5 . 6 . Recycling Units 18 | . 2 . . . . . 4 . 8 . . . . 1 . 1 . . 2 . . . Scanalyzers 8 | . . . . . . . 4 . . . . . . 4 . . . . . . . . Garrison Access 8 | . . . . . 2 . 1 . 2 . . . . 2 . . . . 1 . . . Terminal Hacks 41 | . . . 2 . 2 1 1 . . . . 26 . 1 . 5 . . . 2 1 . Record 10 | . . . 1 . . . . . . . . 9 . . . . . . . . . . Part Schematic 8 | . . . . . . . . . . . . 8 . . . . . . . . . . Robot Schematic 6 | . . . . . . . . . . . . 6 . . . . . . . . . . Prototype ID Bank 4 | . . . . . . . . . . . . 3 . . . 1 . . . . . . Open Door 1 | . . . . . . . . . . . . . . . . 1 . . . . . . Branch Access Points 1 | . . . . . . . 1 . . . . . . . . . . . . . . . Terminal Index 1 | . . . . . 1 . . . . . . . . . . . . . . . . . Unreport Threat 2 | . . . . . . . . . . . . . . . . 2 . . . . . . Recall Reinforcements 1 | . . . . . . . . . . . . . . . . 1 . . . . . . Hauler Manifests 2 | . . . . . 1 . . . . . . . . 1 . . . . . . . . Zone Layout 1 | . . . . . . . . . . . . . . . . . . . . . 1 . Garrison Registry 1 | . . . . . . 1 . . . . . . . . . . . . . . . . Patrol Navigation 1 | . . . . . . . . . . . . . . . . . . . . 1 . . Security Stations 1 | . . . . . . . . . . . . . . . . . . . . 1 . . Proto ID Catalog 1 | . . . 1 . . . . . . . . . . . . . . . . . . . Fabricator Hacks 6 | . . . . . . . 1 . 4 . . . . . . . . . . . 1 . Network Status 3 | . . . . . . . 1 . 1 . . . . . . . . . . . 1 . Build 3 | . . . . . . . . . 3 . . . . . . . . . . . . . Repair Station Hacks 15 | . . . . . . . 2 . . . . . . 8 . . . . 4 . 1 . Scan Component 9 | . . . . . . . 1 . . . . . . 5 . . . . 2 . 1 . Repair 6 | . . . . . . . 1 . . . . . . 3 . . . . 2 . . . Recycling Unit Hacks 9 | . 2 . . . . . 2 . 1 . . . . 1 . 1 . . 2 . . . Report Inventory 7 | . 1 . . . . . 2 . 1 . . . . 1 . 1 . . 1 . . . Retrieve Components 2 | . 1 . . . . . . . . . . . . . . . . . 1 . . . Scanalyzer 8 | . . . . . . . 4 . . . . . . 4 . . . . . . . . Insert Component 4 | . . . . . . . 2 . . . . . . 2 . . . . . . . . Analyze 4 | . . . . . . . 2 . . . . . . 2 . . . . . . . . Garrison Access Hacks 7 | . . . . . 1 . 1 . 2 . . . . 2 . . . . 1 . . . Unlock Access 3 | . . . . . 1 . . . . . . . . 1 . . . . 1 . . . Seal Access 1 | . . . . . . . . . 1 . . . . . . . . . . . . . Coupler Status 3 | . . . . . . . 1 . 1 . . . . 1 . . . . . . . . Unauthorized Hacks 37 | . 2 . . . 8 . 5 . 5 . . . . 5 . 8 . . 3 . 1 . Terminals 34 | . 2 . . . 8 . 5 . 2 . . . . 5 . 8 . . 3 . 1 . Assimilate 1 | . . . . . . . 1 . . . . . . . . . . . . . . . Botnet 8 | . 1 . . . 2 . 1 . 1 . . . . 1 . 2 . . . . . . Operators 3 | . . . . . 1 . . . . . . . . 1 . 1 . . . . . . Skim 22 | . 1 . . . 5 . 3 . 1 . . . . 3 . 5 . . 3 . 1 . Fabricators . | . . . . . . . . . . . . . . . . . . . . . . . Repair Stations . | . . . . . . . . . . . . . . . . . . . . . . . Recycling Units 3 | . . . . . . . . . 3 . . . . . . . . . . . . . Monitor 1 | . . . . . . . . . 1 . . . . . . . . . . . . . Reject 1 | . . . . . . . . . 1 . . . . . . . . . . . . . Recyclers 1 | . . . . . . . . . 1 . . . . . . . . . . . . . Scanalyzers . | . . . . . . . . . . . . . . . . . . . . . . . Garrison Access . | . . . . . . . . . . . . . . . . . . . . . . . Data Cores Recovered . | . . . . . . . . . . . . . . . . . . . . . . . Used . | . . . . . . . . . . . . . . . . . . . . . . . Hacking Detections 72 | . 2 . . . 8 2 11 . 10 . . . . 13 1 9 1 . 7 2 6 . Full Trace Events 4 | . . . . . . . 1 . 1 . . . . 2 . . . . . . . . Feedback Events . | . . . . . . . . . . . . . . . . . . . . . . . Feedback Blocked . | . . . . . . . . . . . . . . . . . . . . . . . Robot Schematics Acquired 6 | . . . . . . . . . . . . 6 . . . . . . . . . . Robots Built 1 | . . . . . . . . . 1 . . . . . . . . . . . . . Authchips . | . . . . . . . . . . . . . . . . . . . . . . . Time 192 | . . . . . . . . . 192 . . . . . . . . . . . . . Total Robot Build Rating 3 | . . . . . . . . . 3 . . . . . . . . . . . . . Part Schematics Acquired 12 | . . . . . . . 2 . . . . 8 . 2 . . . . . . . . Parts Built 2 | . . . . . . . . . 2 . . . . . . . . . . . . . Authchips . | . . . . . . . . . . . . . . . . . . . . . . . Time 84 | . . . . . . . . . 84 . . . . . . . . . . . . . Total Part Build Rating 8 | . . . . . . . . . 8 . . . . . . . . . . . . . Parts Repaired 6 | . . . . . . . 1 . . . . . . 3 . . . . 2 . . . Time 270 | . . . . . . . 35 . . . . . . 149 . . . . 86 . . . Parts Recycled . | . . . . . . . . . . . . . . . . . . . . . . . Recycled Matter . | . . . . . . . . . . . . . . . . . . . . . . . Retrieved Matter . | . . . . . . . . . . . . . . . . . . . . . . . Retrieved Components 5 | . 3 . . . . . . . . . . . . . . . . . 2 . . . Parts Scanalyzed 4 | . . . . . . . 2 . . . . . . 2 . . . . . . . . Part Schematics Acquired 4 | . . . . . . . 2 . . . . . . 2 . . . . . . . . Parts Damaged . | . . . . . . . . . . . . . . . . . . . . . . . Bothacking | -11 -10 -10 -10 -9 -8 -8 -7 -7 -7 -7 -7 -7 -6 -6 -6 -6 -5 -5 -5 -5 -5 -5 ------------ Run | Yrd Mat Min Exi Min Mat Gar Fac Was Fac Low Low Dat Pro Fac Gar Ext Fac Was Fac Gar Fac Upp Used RIF Installer 4 | . . . . . . 2 . . . . . . . . 1 . . . . 1 . . Patrol Navigation 1 | . . . . . . 1 . . . . . . . . . . . . . . . . Alert ID Control 1 | . . . . . . . . . . . . . . . . . . . . 1 . . Autooverride 1 | . . . . . . . . . . . . . . . 1 . . . . . . . Robots Hacked 57 | . . . . . . . 7 1 1 . . 1 1 4 5 14 1 4 2 3 12 1 Non-combat 19 | . . . . . . . 7 . . . . . . 1 . 4 1 . 2 . 4 . Combat 38 | . . . . . . . . 1 1 . . 1 1 3 5 10 . 4 . 3 8 1 Autooverrided 3 | . . . . . . . . . . . . . . . . 1 . . . 1 . 1 Robot Hacks Applied 60 | . . . . . . . 9 1 1 . . 1 1 4 5 15 1 4 3 2 13 . parse_system 11 | . . . . . . . . 1 . . . 1 1 . 2 5 . 1 . . . . find_chute 1 | . . . . . . . 1 . . . . . . . . . . . . . . . map_walls 1 | . . . . . . . . . . . . . . . . . . . . . 1 . find_fabricator 3 | . . . . . . . 1 . . . . . . . . . 1 . 1 . . . drop_inventory 3 | . . . . . . . 1 . . . . . . . . . . . 2 . . . locate_stockpiles 1 | . . . . . . . 1 . . . . . . . . . . . . . . . find_recycling 3 | . . . . . . . 2 . . . . . . 1 . . . . . . . . ignore_parts 3 | . . . . . . . . . . . . . . . . 3 . . . . . . purge_threat 2 | . . . . . . . . . . . . . . . . 1 . . . . 1 . block_reporting 2 | . . . . . . . . . . . . . . . . 1 . . . . 1 . map_route 2 | . . . . . . . 2 . . . . . . . . . . . . . . . ignore_targets 3 | . . . . . . . . . . . . . . . . . . 3 . . . . link_fov 1 | . . . . . . . . . . . . . . . . . . . . . 1 . reboot_propulsion 2 | . . . . . . . . . . . . . . . . . . . . . 2 . scatter_targeting 1 | . . . . . . . . . . . . . . . . . . . . . 1 . disrupt_area 1 | . . . . . . . . . . . . . . . . 1 . . . . . . overload_power 1 | . . . . . . . 1 . . . . . . . . . . . . . . . amplify_resonance 6 | . . . . . . . . . . . . . . 1 . 1 . . . . 4 . disable_weapons 6 | . . . . . . . . . 1 . . . . 2 . 2 . . . . 1 . overwrite_iff 5 | . . . . . . . . . . . . . . . 2 1 . . . 1 1 . streamctrl_high 1 | . . . . . . . . . . . . . . . . . . . . 1 . . formatsys_high 1 | . . . . . . . . . . . . . . . 1 . . . . . . . Relay Couplers Released 23 | . . . . . . . . . . . . . . 1 12 . . . . 8 2 . Machine Destruction 23 | . . . . . . . . . . . . . . 1 12 . . . . 8 2 . Attached 16 | . . . . . . . 1 2 1 . . . . 1 1 3 . . . 3 2 2 Fabnet Peak Effective % . | . . . . . . . . . . . . . . . . . . . . . . . Robots Rewired 25 | . . . . . . 4 . . . . . . . . 13 8 . . . . . . Allies Hacked . | . . . . . . . . . . . . . . . . . . . . . . . Hacks Repelled . | . . . . . . . . . . . . . . . . . . . . . . . Allies | -11 -10 -10 -10 -9 -8 -8 -7 -7 -7 -7 -7 -7 -6 -6 -6 -6 -5 -5 -5 -5 -5 -5 -------- Run | Yrd Mat Min Exi Min Mat Gar Fac Was Fac Low Low Dat Pro Fac Gar Ext Fac Was Fac Gar Fac Upp Total Allies 47 | . . 3 . . . 4 1 . 1 . . . 1 . 16 16 . . . 3 1 1 Largest Group 16 | . . 3 . . . 4 1 . . . . . 1 1 10 16 . . . 2 1 1 Highest-Rated Group 820 | . . 40 . . . 113 10 . . . . . 96 96 547 820 . . . 98 12 49 Highest-Rated Ally 159 | . . 16 . . . 31 10 . . . . . 96 96 119 159 . . . 49 12 49 Total Orders 8 | . . . . . . . 2 . . . . . . . 6 . . . . . . . STAY 1 | . . . . . . . 1 . . . . . . . . . . . . . . . FOLLOW 3 | . . . . . . . 1 . . . . . . . 2 . . . . . . . GUARD 4 | . . . . . . . . . . . . . . . 4 . . . . . . . Ally Attacks 401 | . . 7 . . . 28 . . . . . . 5 22 69 247 . . . 18 1 4 Total Damage 10011 | . . 83 . . . 506 . . . . . . 152 774 1640 6077 . . . 622 17 140 Kills 85 | . . 4 . . . 5 . . . . . . 1 8 13 47 . . . 6 . 1 Allies Corrupted . | . . . . . . . . . . . . . . . . . . . . . . . Allies Melted . | . . . . . . . . . . . . . . . . . . . . . . . Intel | -11 -10 -10 -10 -9 -8 -8 -7 -7 -7 -7 -7 -7 -6 -6 -6 -6 -5 -5 -5 -5 -5 -5 ------- Run | Yrd Mat Min Exi Min Mat Gar Fac Was Fac Low Low Dat Pro Fac Gar Ext Fac Was Fac Gar Fac Upp Active Infowar (turns) 6855 | . . . . . 1037 1688 1472 43 988 226 143 . . 1258 . . . . . . . . Optics 5597 | . . . . . 1037 1688 1472 43 988 226 143 . . . . . . . . . . . Jamming 1243 | . . . . . . . 2 . . . . . . 1241 . . . . . . . . ECM 76 | . . . . . . . . . . . . . . 76 . . . . . . . . Robot Analysis Total . | . . . . . . . . . . . . . . . . . . . . . . . Derelict Logs Recovered 2 | . . . . . . . . . . 1 1 . . . . . . . . . . . Drone Launches . | . . . . . . . . . . . . . . . . . . . . . . . Drone Recoveries . | . . . . . . . . . . . . . . . . . . . . . . . Exploration | -11 -10 -10 -10 -9 -8 -8 -7 -7 -7 -7 -7 -7 -6 -6 -6 -6 -5 -5 -5 -5 -5 -5 ------------- Run | Yrd Mat Min Exi Min Mat Gar Fac Was Fac Low Low Dat Pro Fac Gar Ext Fac Was Fac Gar Fac Upp Turns Passed 19504 | 43 160 91 413 69 1052 1688 1485 43 988 226 640 95 297 2614 1882 2305 304 137 1345 1835 1542 250 Spaces Moved 11670 | 38 120 83 431 56 548 866 949 69 1184 225 588 92 278 1464 824 1026 179 80 720 791 772 287 Core 1050 | 1 . . . . . . 15 69 723 . . . . . . . . . . . . 242 Treads 4260 | . . . . . 39 866 337 . . . . . . . . 431 179 80 720 791 772 45 Legs 565 | . . . . . . . . . . . . . . . . 565 . . . . . . Wheels 5795 | 37 120 83 431 56 509 . 597 . 461 225 588 92 278 1464 824 30 . . . . . . Hover . | . . . . . . . . . . . . . . . . . . . . . . . Flight . | . . . . . . . . . . . . . . . . . . . . . . . Fastest Speed 50 | 50 90 90 90 105 86 155 86 50 50 100 100 100 100 100 120 160 160 160 152 152 152 50 Average Speed 129 | 88 90 90 94 105 106 155 128 50 69 100 100 100 100 117 168 179 160 160 157 152 168 68 Slowest Speed 700 | 90 90 90 105 105 155 155 700 50 100 100 100 100 100 145 190 260 160 160 240 152 250 170 Overloaded Moves . | . . . . . . . . . . . . . . . . . . . . . . . Propulsion Burnouts . | . . . . . . . . . . . . . . . . . . . . . . . Robots Hopped . | . . . . . . . . . . . . . . . . . . . . . . . Potential Cave-ins . | . . . . . . . . . . . . . . . . . . . . . . . Cave-ins Triggered . | . . . . . . . . . . . . . . . . . . . . . . . Exploration Rate (%) 47 | 3 35 20 78 14 39 72 33 86 32 46 73 75 41 41 78 98 5 62 24 69 26 44 Regions Visited 22 Branch Regions 9 Pre-discovered Areas 3 | . . . 1 . . . . . . . 1 1 . . . . . . . . . . Known Exits Taken 8 | . . . . . 1 . . . 1 1 . . 1 1 . 1 . . 1 . 1 . Unknown Exits Taken 7 | 1 1 1 1 1 . . . . . . 1 1 . . . . . . . . . . Scrap Searched 5 | . . . . . . . . . . 2 2 . . . . . . . . . . 1 Spaces Dug 120 | . . . . . 6 . 5 . 8 . 1 . . 7 36 . 1 . 52 1 3 . Terrain Destroyed 308 | . . . . . 8 9 16 . 8 . 1 . . 40 85 37 1 . 64 28 7 4 Melee 56 | . . . . . . . . . 8 . 1 . . 7 36 . 1 . . . 3 . Projectile 88 | . . . . . 8 . 16 . . . . . . 6 . 1 . . 25 24 4 4 AOE 164 | . . . . . . 9 . . . . . . . 27 49 36 . . 39 4 . . Terrain Rammed . | . . . . . . . . . . . . . . . . . . . . . . . Walls Destroyed . | . . . . . . . . . . . . . . . . . . . . . . . Machines Disabled . | . . . . . . . . . . . . . . . . . . . . . . . Actions | -11 -10 -10 -10 -9 -8 -8 -7 -7 -7 -7 -7 -7 -6 -6 -6 -6 -5 -5 -5 -5 -5 -5 --------- Run | Yrd Mat Min Exi Min Mat Gar Fac Was Fac Low Low Dat Pro Fac Gar Ext Fac Was Fac Gar Fac Upp Total 14646 | 44 147 99 437 60 883 1056 1112 80 1301 226 611 94 288 2077 1113 1421 196 88 873 1190 924 326 Wait 1317 | . . 17 . . 198 30 48 . 61 . . . 2 343 68 251 4 . 77 172 33 13 Move 11653 | 37 119 82 430 55 547 865 949 68 1183 224 587 91 277 1464 823 1025 179 79 720 790 772 287 Hop . | . . . . . . . . . . . . . . . . . . . . . . . Pick Up 155 | 1 9 . 3 2 19 11 6 . 11 1 2 . . 37 14 10 2 2 7 10 5 3 Fast Attach 109 | 6 4 . . . 11 6 7 . 5 . 3 . . 15 7 10 1 . 7 13 9 5 Attach 67 | . . . . . 8 3 3 3 6 . . . . 14 7 3 2 . 3 6 6 3 Detach 11 | . . . . . 1 1 1 . . . . . . 2 . 1 1 . 1 2 1 . Swap 178 | . . . 1 . 8 20 15 . 8 . 2 2 3 26 27 22 1 . 10 18 15 . Drop 174 | . 3 . 3 . 19 16 11 8 3 1 4 . 1 28 12 17 3 2 10 22 9 2 Fire 762 | . 12 . . 3 71 78 70 1 8 . 7 . 4 123 69 56 1 5 35 155 58 6 Melee 153 | . . . . . . 16 . . 16 . 6 1 1 15 62 19 1 . . . 15 1 Ram 2 | . . . . . . . . . . . . . . 2 . . . . . . . . Kick . | . . . . . . . . . . . . . . . . . . . . . . . Crush 16 | . . . . . 1 . 2 . . . . . . . . 2 1 . 3 . 1 6 Escape Stasis 37 | . . . . . . . . . . . . . . 8 24 5 . . . . . . Rewire . | . . . . . . . . . . . . . . . . . . . . . . . Trap 4 | . . . . . . 2 . . . . . . . . . . . . . 2 . . Miscellaneous 8 | . . . . . . 8 . . . . . . . . . . . . . . . . Route ------- -11/Scrapyard -10/Materials (discovered 2 exits: [*Mat] / [*Min]) -10/Mines (discovered 2 exits: [*Mat] / *Exi) -10/Exiles -9/Mines -8/Materials -8/Garrison (discovered 3 exits: *Fac x3) -7/Factory (discovered 6 exits: *Fac x3 / *Sto / Low x2) -7/Waste -7/Factory (discovered 3 exits: *Sto x2 / *Low) -7/Lower Caves -7/Lower Caves -7/Data Miner -6/Proximity Caves -6/Factory (discovered 4 exits: *Fac x2 / [*Low] / Gar) -6/Garrison (discovered 3 exits: *Ext x3) -6/Extension (discovered 3 exits: *Fac x2 / [*Cet]) -5/Factory (discovered 6 exits: Fac x4 / Upp x2) -5/Waste -5/Factory (discovered 2 exits: *Fac / Gar) -5/Garrison (discovered 2 exits: *Fac x2) -5/Factory (discovered 3 exits: *Fac x2 / *Upp) -5/Upper Caves History --------- Turn | Location | Event 18 | -11/Scrapyard | Discovered new exit (range 15) 44 | -11/Scrapyard | Entered Materials 178 | -10/Materials | Discovered new exit (range 10) 188 | -10/Materials | Discovered new exit (range 15) 204 | -10/Materials | Entered Mines 214 | -10/Mines | Discovered new exit (range 10) 222 | -10/Mines | Assisted by bots powering up and referring to "LRC-V3" 282 | -10/Mines | Assembled infested the area 292 | -10/Mines | Deemed a non-threat by the Exiles lab entrance 292 | -10/Mines | Discovered new exit (range 5) 295 | -10/Mines | Entered Exiles 302 | -10/Exiles | Build established: Mutant 318 | -10/Exiles | Lost 3 allies 318 | -10/Exiles | Met 8R-AWN 332 | -10/Exiles | Met EX-HEX 361 | -10/Exiles | Met EX-BIN 401 | -10/Exiles | Aligned with FarCom system 402 | -10/Exiles | Given EX-Vault access code 422 | -10/Exiles | Opened EX-Vault 428 | -10/Exiles | Found 0b10 Alert Chip 449 | -10/Exiles | Warned to stay clear of 0b10 Research branches 589 | -10/Exiles | Met EX-DEC 605 | -10/Exiles | Visited The Gauntlet 655 | -10/Exiles | Learned location of Zion (-6) 698 | -10/Exiles | Discovered new exit (range 11) 708 | -10/Exiles | Left Exiles lab with 0b10 Alert Chip 708 | -10/Exiles | Entered Mines 709 | -9/Mines | Met a Derelict testing a Signal Generator 712 | -9/Mines | Found Signal Generator 759 | -9/Mines | Discovered new exit (range 13) 777 | -9/Mines | Entered Materials 777 | -8/Materials | Evolved 4 slots: Propulsion x1, Utility x2, Weapon x1 1328 | -8/Materials | Garrison activated, responded to threat 1340 | -8/Materials | Build established: Skirmisher 1521 | -8/Materials | Learned 4 Factory zone layouts 1580 | -8/Materials | Learned location of 1 exit from Recycling 1595 | -8/Materials | Identified exit to Garrison 1629 | -8/Materials | Learned location of 2 exits from Factory 1668 | -8/Materials | Learned Storage stockpile data 1695 | -8/Materials | Learned location of 1 exit from Recycling 1712 | -8/Materials | Learned location of 1 exit from Lower Caves 1740 | -8/Materials | Learned Storage terminal intel 1749 | -8/Materials | Lost 6 parts (1p3n1u1w) 1780 | -8/Materials | Learned Storage security intel 1828 | -8/Materials | Learned Factory emergency access door positions 1829 | -8/Materials | Entered Garrison 1969 | -8/Garrison | Triggered checkpoint 2323 | -8/Garrison | Lost 4 allies 2609 | -8/Garrison | Triggered checkpoint 2648 | -8/Garrison | Discovered new exit (range 10) 2695 | -8/Garrison | Triggered checkpoint 2871 | -8/Garrison | Discovered new exit (range 13) 2919 | -8/Garrison | Triggered checkpoint 2926 | -8/Garrison | Discovered new exit (range 72) 2926 | -8/Garrison | Discovered new exit (range 38) 2926 | -8/Garrison | Discovered new exit (range 10) 2947 | -8/Garrison | Triggered checkpoint 3430 | -8/Garrison | Installed Relay Interface Framework 3486 | -8/Garrison | Expanded RIF knowledge: Patrol Navigation 3517 | -8/Garrison | Entered Factory 3517 | -7/Factory | Evolved 2 slots: Power x1, Utility x1 3518 | -7/Factory | Identified exit to Factory 3673 | -7/Factory | Identified exit to Storage 3673 | -7/Factory | Identified exit to Lower Caves 3733 | -7/Factory | Build established: Bothacker-Skirmisher 4171 | -7/Factory | Lost 4 parts (1p3n) 4337 | -7/Factory | Repaired Mni. Assault Cannon 4869 | -7/Factory | Discovered exit to Factory (range 7) 4997 | -7/Factory | Core integrity fell below 50% 5002 | -7/Factory | Sucked down chute 5002 | -7/Factory | Entered Waste 5017 | -7/Waste | EMP discharged 5022 | -7/Waste | Lost 8 parts (1p3n3u1w) 5022 | -7/Waste | Spotted C-40 Crusher 5025 | -7/Waste | Spotted C-40 Crusher 5025 | -7/Waste | Spotted C-40 Crusher 5029 | -7/Waste | Spotted C-40 Crusher 5035 | -7/Waste | Spotted C-40 Crusher 5035 | -7/Waste | Spotted C-40 Crusher 5038 | -7/Waste | Crushed by Compactor (1 part destroyed, 1 dropped) 5038 | -7/Waste | Discovered new exit (range 13) 5045 | -7/Waste | Entered Factory 5133 | -7/Factory | Fabricated Transmission Jammer? 5148 | -7/Factory | Discovered exit to Storage (range 5) 5273 | -7/Factory | Build established: Mutant 5341 | -7/Factory | Fabricated O-24 Administrator? 5607 | -7/Factory | Discovered exit to Storage (range 17) 5994 | -7/Factory | Discovered exit to Lower Caves (range 15) 6033 | -7/Factory | Entered Lower Caves 6034 | -7/Lower Caves | Identified exit to Lower Caves 6190 | -7/Lower Caves | Build established: Scavenger-Mutant 6212 | -7/Lower Caves | Spotted B-75 Beast 6259 | -7/Lower Caves | Entered another Lower Caves area 6621 | -7/Lower Caves | Attracted the attention of an 0b10 checkpoint 6816 | -7/Lower Caves | Discovered new exit (range 15) 6899 | -7/Lower Caves | Entered Data Miner 6899 | -7/Data Miner | Discovered new exit (range 6) 6918 | -7/Data Miner | Met Data Miner 6939 | -7/Data Miner | Learned location of Section 7 (-2) 6939 | -7/Data Miner | Acquired the access code to Warlord's prototype stash 6956 | -7/Data Miner | Received God Mode back door access code from Data Miner 6994 | -7/Data Miner | Entered Proximity Caves 6997 | -6/Proximity Caves | Spotter reported a threat 7082 | -6/Proximity Caves | Escorted by Enhanced Grunt 7090 | -6/Proximity Caves | Core integrity fell below 20% 7278 | -6/Proximity Caves | Discovered exit to Factory (range 11) 7291 | -6/Proximity Caves | Entered Factory 7291 | -6/Factory | Accompanied by 1 ally 7291 | -6/Factory | Evolved 2 slots: Utility x2 7336 | -6/Factory | Discovered new exit (range 12) 7443 | -6/Factory | Discovered new exit (range 15) 7643 | -6/Factory | Repaired Prc. Assault Rifle 8154 | -6/Factory | Build established: Skirmisher 8305 | -6/Factory | Found Powered Armor 8309 | -6/Factory | Found Powered Armor 8311 | -6/Factory | Found Powered Armor 8315 | -6/Factory | Found Powered Armor 8578 | -6/Factory | Repaired Arm. Huge Wheel 8649 | -6/Factory | Repaired Prc. Assault Rifle 9004 | -6/Factory | Incoming assault squad redirected 9023 | -6/Factory | Incoming assault squad redirected 9047 | -6/Factory | System corruption reached 10% 9081 | -6/Factory | Lost 8 parts (1n5u2w) 9237 | -6/Factory | Discovered new exit (range 6) 9741 | -6/Factory | First assault squad dispatched 9765 | -6/Factory | Incoming assault squad redirected 9769 | -6/Factory | Incoming assault squad redirected 9905 | -6/Factory | Identified exit to Garrison 9905 | -6/Factory | Entered Garrison 9908 | -6/Garrison | Assembled breached garrison interior 9933 | -6/Garrison | Lost 3 parts (3u) 10054 | -6/Garrison | Garrison Relay disabled 10244 | -6/Garrison | Destroyed 17 combat bots 10277 | -6/Garrison | Discovered new exit (range 12) 10369 | -6/Garrison | Core integrity fell below 50% 10645 | -6/Garrison | Build established: Scavenger-Mutant 10711 | -6/Garrison | Discovered new exit (range 11) 10866 | -6/Garrison | Spotted Striker 10866 | -6/Garrison | Spotted Striker 10893 | -6/Garrison | Rewired Executioner 10898 | -6/Garrison | Rewired Executioner 11128 | -6/Garrison | Garrison Relay disabled 11499 | -6/Garrison | Garrison Relay disabled 11659 | -6/Garrison | Lost 3 allies 11709 | -6/Garrison | Expanded RIF knowledge: Autooverride 11748 | -6/Garrison | Discovered new exit (range 6) 11787 | -6/Garrison | Entered Extension 11787 | -6/Extension | Accompanied by 8 allies 12136 | -6/Extension | Rescued a captive Derelict 12223 | -6/Extension | Rescued A7 12241 | -6/Extension | Build established: Commander-Tank 12253 | -6/Extension | Rescued a captive Derelict 12487 | -6/Extension | First assault squad dispatched 12569 | -6/Extension | Rescued a captive Derelict 12570 | -6/Extension | Rescued a captive Derelict 12592 | -6/Extension | Build established: Commander-Mutant 12852 | -6/Extension | Incoming assault squad redirected 13075 | -6/Extension | Spotted B-75 Beast 13085 | -6/Extension | Spotted B-75 Beast 13111 | -6/Extension | Allies destroyed B-75 Beast 13117 | -6/Extension | Found Exp. Targeting Computer 13158 | -6/Extension | Lost 5 allies 13343 | -6/Extension | Rescued a captive Derelict 13349 | -6/Extension | Rescued a captive Derelict 13355 | -6/Extension | Build established: Bothacker-Tank 13559 | -6/Extension | Incoming assault squad redirected 13565 | -6/Extension | Loaded intel: 11 trap records 13642 | -6/Extension | Learned Hub_04(d) trap positions 13691 | -6/Extension | Build established: Scavenger-Tank 13708 | -6/Extension | Learned Hub_04(d) trap positions 13764 | -6/Extension | Identified exit to Factory 13777 | -6/Extension | Incoming assault squad redirected 13778 | -6/Extension | P-60 Hacker assimilated allied 6I-Q4U(g) 13838 | -6/Extension | Discovered new exit (range 6) 13842 | -6/Extension | Learned Factory repair station intel 13883 | -6/Extension | Learned location of 2 exits from Factory 13912 | -6/Extension | Disrupted transfer network 13921 | -6/Extension | Incoming assault squad redirected 13924 | -6/Extension | Extracted ID and sensor layout for unrecognized location from A7's data core 13934 | -6/Extension | Learned Hub_04(d) trap positions 13941 | -6/Extension | Found Med. Regenerative Plating 14022 | -6/Extension | Core integrity fell below 20% 14092 | -6/Extension | Entered Factory 14092 | -5/Factory | Evolved 2 slots: Propulsion x1, Utility x1 14093 | -5/Factory | Identified exit to Factory 14094 | -5/Factory | Identified exit to Upper Caves 14095 | -5/Factory | Loaded intel: 6 repair station locations 14195 | -5/Factory | Build established: Bothacker-Skirmisher 14396 | -5/Factory | Sucked down chute 14396 | -5/Factory | Entered Waste 14407 | -5/Waste | Found Broken Imp. Powered Armor 14411 | -5/Waste | EMP discharged 14420 | -5/Waste | Spotted C-40 Crusher 14450 | -5/Waste | Spotted C-40 Crusher 14454 | -5/Waste | Spotted C-40 Crusher 14505 | -5/Waste | Spotted C-40 Crusher 14511 | -5/Waste | EMP discharged 14511 | -5/Waste | System corruption reached 10% 14515 | -5/Waste | Discovered new exit (range 13) 14522 | -5/Waste | Spotted C-40 Crusher 14533 | -5/Waste | Entered Factory 14668 | -5/Factory | Build established: Bothacker-Mutant 14693 | -5/Factory | Discovered exit to Factory (range 14) 14930 | -5/Factory | Repaired Broken Adv. Heavy Treads 15025 | -5/Factory | Repaired Broken Imp. Powered Armor 15280 | -5/Factory | Build established: Bothacker-Tank 15878 | -5/Factory | Identified exit to Garrison 15878 | -5/Factory | Entered Garrison 15920 | -5/Garrison | Triggered checkpoint 16046 | -5/Garrison | Learned Factory security intel 16105 | -5/Garrison | Garrison Relay disabled 16256 | -5/Garrison | Triggered checkpoint 16275 | -5/Garrison | Triggered checkpoint 16710 | -5/Garrison | Discovered new exit (range 8) 16948 | -5/Garrison | Triggered checkpoint 17133 | -5/Garrison | Build established: Scavenger-Tank 17148 | -5/Garrison | Triggered checkpoint 17194 | -5/Garrison | Discovered new exit (range 11) 17252 | -5/Garrison | Triggered checkpoint 17287 | -5/Garrison | Expanded RIF knowledge: Alert ID Control 17507 | -5/Garrison | Garrison Relay disabled 17713 | -5/Garrison | Entered Factory 17930 | -5/Factory | Build established: Bothacker-Tank 18184 | -5/Factory | Discovered exit to Factory (range 11) 18604 | -5/Factory | Lost 3 parts (1n1u1w) 18690 | -5/Factory | Build established: Bothacker-Mutant 18903 | -5/Factory | Cargo convoy interrupted 18921 | -5/Factory | Incoming assault squad redirected 18922 | -5/Factory | Incoming assault squad redirected 18999 | -5/Factory | Discovered exit to Factory (range 15) 19070 | -5/Factory | Build established: Bothacker-Skirmisher 19200 | -5/Factory | Lost 3 parts (2u1w) 19231 | -5/Factory | Incoming investigation squad redirected 19245 | -5/Factory | Discovered exit to Upper Caves (range 7) 19255 | -5/Factory | Entered Upper Caves 19280 | -5/Upper Caves | Attacked by a faux Warlord 19282 | -5/Upper Caves | Core integrity fell below 50% 19285 | -5/Upper Caves | System corruption reached 30% 19363 | -5/Upper Caves | Released all parts (3) 19383 | -5/Upper Caves | Lost 8 parts (2n6u) 19478 | -5/Upper Caves | Core integrity fell below 20% 19505 | -5/Upper Caves | Destroyed by S-27 Virus with Autogun Last Messages --------------- 19418_ System corrupted: Matter fused (-10). 19436_ System corrupted: Heat flow error (+171). 19452_ EI,JEJJE L 3SLAGPICMBZA9SO 19459_ RIF automatically rewrites Y-64 Sentinel IFF filter. 19464_ Slug penetrates G-50 Soldier. 19464_ G-50 Soldier destroyed. 19467_ Slug penetrates S-27 Virus. 19468_ System corrupted: Energy discharge (-28). 19470_ Y-64 Sentinel heat spikes uncontrollably. 19470_ Network quickbooting Y-64 Sentinel, ETC: 7. 19472_ Y-64 Sentinel heat short circuits Adv. Heat Sink. 19484_ IB:9JXC:LFVACRVVNNY7Z YJ